Cogmind - Beta 14 --- EXPLORER MODE // 2025.03.29 @ 18:35:08 Player: Allakazzaror Result: Destroyed by DAS Turret with DAS Cannon Performance ------------- Evolutions (0) 0 Regions Visited (3) 600 Robots Destroyed (19) 95 Value Destroyed (389) 389 Prototype IDs (27) 540 Alien Tech Used (0) 0 Bonus (300) 300 TOTAL SCORE: 1924 Bonus ------- Aligned with FarCom 300 Cogmind --------- Core Integrity 0/250 Matter 251/300 Energy 96/100 System Corruption 1% Temperature Cool (0) Movement Core (50) Location -10/Exiles Parts ------- > --- POWER (1) -------- (None) > --- PROPULSION (2) --- (None) > --- UTILITY (3) ------ (None) > --- WEAPON (2) ------- (None) > --- INVENTORY (5) ---- High-capacity Storage Unit Improved Terrain Scanner AWS/Autocannon Peak State ------------ > --- POWER ------------ Light Nuclear Core > --- PROPULSION ------- Light Treads Light Treads > --- UTILITY ---------- Sensor Array Improved Terrain Scanner Light Armor Plating > --- WEAPON ----------- Particle Gun Slug Cannon > --- INVENTORY -------- High-capacity Storage Unit AWS/Autocannon Rocket Launcher [Rating: 19] Favorites ----------- Power Light Nuclear Core Engine Light Ion Engine Power Core Light Nuclear Core Propulsion Light Treads Treads Light Treads Utility Targeting Computer Device Improved Terrain Scanner Storage High-capacity Storage Unit Processor Targeting Computer Protection Light Armor Plating Weapon Particle Gun Energy Gun Particle Gun Ballistic Gun Assault Rifle Ballistic Cannon Slug Cannon Launcher Rocket Launcher Special Weapon Mining Laser Build | -11 -10 -10 -10 ------- Run | Yrd Mat Min Exi Slots Evolved 1 | . 1 . . Power . | . . . . Propulsion . | . . . . Utility 1 | . 1 . . Weapon . | . . . . Parts Attached 36 | 7 17 7 5 Power 2 | 1 1 . . Engine 1 | 1 . . . Core 1 | . 1 . . Reactor . | . . . . Propulsion 7 | 2 5 . . Treads 7 | 2 5 . . Leg . | . . . . Wheel . | . . . . Hover . | . . . . Flight . | . . . . Utility 16 | 2 9 1 4 Device 4 | 1 . 1 2 Storage 1 | . . . 1 Processor 2 | 1 1 . . Hackware . | . . . . Protection 9 | . 8 . 1 Artifact . | . . . . Weapon 11 | 2 2 6 1 Energy Gun 4 | 1 2 1 . Energy Cannon . | . . . . Ballistic Gun 3 | 1 . 2 . Ballistic Cannon 1 | . . 1 . Launcher 2 | . . 1 1 Special Weapon 1 | . . 1 . Impact Weapon . | . . . . Slashing Weapon . | . . . . Piercing Weapon . | . . . . Special Melee Weapon . | . . . . Unidentified Prototypes . | . . . . Parts Lost 9 | . 1 . 8 Power 1 | . . . 1 Propulsion 2 | . . . 2 Utility 2 | . . . 2 Weapon 4 | . 1 . 3 Highest Loss Streak 8 | . 1 . 8 To Critical Strikes . | . . . . Average Slot Usage (%) 99 | . 98 100 99 Engine 2 | . 5 . . Core 9 | . 6 12 11 Treads 24 | . 25 25 24 Device 4 | . 2 5 5 Storage 1 | . . . 6 Processor 24 | . 24 25 24 Protection 6 | . 9 6 . Energy Gun 11 | . 11 11 12 Ballistic Gun 7 | . 12 8 . Ballistic Cannon 3 | . . 1 11 Peak Build Rating 19 | 7 11 16 19 Average Rating 11 | 5 9 12 16 On Entrance 8 | . 7 11 16 Naked Turns 2 | . . . 2 Heaviest Build 55 | 8 13 16 55 Greatest Support 40 | 40 40 40 40 Greatest Overweight (x) 1 | . . . 1 Average Overweight (x) . | . . . . Largest Inventory Capacity 20 | 5 5 5 20 Average Capacity 6 | 5 5 5 12 Most Carried 8 | 3 5 5 8 Average Carried 4 | . 4 4 6 Final Capacity 5 | 5 5 5 5 Final Carried 5 | 1 5 5 5 Class Distribution -------------------- 100% | Hacker-Mutant Dominant Class ---------------- Hacker-Mutant | -10/Materials Hacker-Mutant | -10/Mines Hacker-Mutant | -10/Exiles Resources | -11 -10 -10 -10 ----------- Run | Yrd Mat Min Exi Matter Collected 694 | 245 279 164 6 Remotely . | . . . . Salvage Created 846 | . 808 28 10 Parts 35 | . 31 4 . Haulers Intercepted 2 | . 2 . . Recyclers Shooed 4 | . 4 . . Parts Field Recycled . | . . . . Retrieved Matter . | . . . . Parts Self-Destructed . | . . . . Prevented . | . . . . Kills | -11 -10 -10 -10 ------- Run | Yrd Mat Min Exi Combat Hostiles Destroyed 15 | . 7 2 6 Guns 8 | . 6 2 . AOE 7 | . 1 . 6 Classes Destroyed 6 | . 4 1 1 Hauler 2 | . 2 . . Recycler 5 | . 5 . . Watcher 3 | . 3 . . Swarmer 2 | . . 2 . Grunt 7 | . 7 . . Assembled 6 | . . . 6 Best Kill Streak 6 | . 3 2 6 Combat Bots Only 6 | . 2 2 6 Max Kills in Single Turn 4 | . 1 1 4 Gunslinging . | . . . . Exploded 4 | . 1 . 4 Melee . | . . . . Uniques/NPCs Destroyed . | . . . . Combat | -11 -10 -10 -10 -------- Run | Yrd Mat Min Exi Hostile Shots Fired 105 | . 36 9 60 Missed 19 | . 7 1 11 Damage Taken 1262 | . 338 32 892 Core 278 | . 68 3 207 Absorbed by Shields . | . . . . Redirected to Shielding 5 | . 5 . . Ignored by Resistances 748 | . 205 25 518 Regen/Repaired (Parts) 43 | . 43 . . Core Remaining (%) 100 | 100 . . . Volleys Fired 69 | . 52 14 3 Largest 2 | . 2 2 1 Hottest 100 | . 85 100 33 Shots Fired 114 | . 94 16 4 Gun 106 | . 94 12 . Cannon 1 | . . . 1 Launcher 3 | . . . 3 Special 4 | . . 4 . Kinetic 59 | . 50 8 1 Thermal 37 | . 29 8 . Explosive 3 | . . . 3 Electromagnetic 15 | . 15 . . Robot Hit Streak 38 | . 38 16 11 Robot Miss Streak 2 | . 2 1 . Penetration Max . | . . . . Secondary Targets . | . . . . Shots Hit Robots 96 | . 82 11 3 Core Hits 38 | . 28 2 8 Critical Kills . | . . . . Critical Parts Destroyed 2 | . 2 . . Critical Strikes 7 | . 6 1 . Burn 5 | . 4 1 . Destroy 2 | . 2 . . Melee Attacks . | . . . . Impact . | . . . . Slashing . | . . . . Piercing . | . . . . Sneak Attacks . | . . . . Combat Hostiles . | . . . . Follow-up Attacks . | . . . . Damage Inflicted 1825 | . 1240 153 432 Guns 1290 | . 1140 150 . Cannons 27 | . . . 27 Explosions 505 | . 100 . 405 Melee . | . . . . Ramming 3 | . . 3 . Kinetic 626 | . 511 88 27 Thermal 598 | . 536 62 . Explosive 405 | . . . 405 Electromagnetic 193 | . 193 . . Impact . | . . . . Slashing . | . . . . Piercing . | . . . . Highest Corruption 1 | . 1 1 1 Average Corruption 1 | . 1 1 1 Corruption Purged . | . . . . Corruption Blocked . | . . . . Effects 18 | . 2 9 7 Message Errors 8 | . 2 4 2 Matter Fused 2 | . . 1 1 Heat Flow Errors 1 | . . 1 . Energy Discharges 3 | . . 2 1 Data Loss (minor) 1 | . . . 1 Data Loss (major) 1 | . . 1 . Misfires 1 | . . . 1 Alerts 1 | . . . 1 Overload Shots . | . . . . Overflow Damage 21 | . . . 21 Projectiles . | . . . . Explosions 21 | . . . 21 Melee . | . . . . Knockbacks . | . . . . Impact . | . . . . Kinetic . | . . . . Secondary . | . . . . Self-Inflicted Damage 16 | . 16 . . Shots 1 | . 1 . . Rammed 1 | . . 1 . Targets Rammed 1 | . . 1 . Kicked . | . . . . Crushed . | . . . . Highest Temperature 271 | . 271 199 52 Average Temperature 65 | . 74 47 18 Received Heat Transfer 582 | . 282 . 300 Effects 3 | . 3 . . Interference 3 | . 3 . . Siege Activations . | . . . . Robots Corrupted 1 | . 1 . . Combat Hostiles . | . . . . Parts Fried 2 | . 2 . . Impact Corruptions . | . . . . Robots Melted . | . . . . Combat Hostiles . | . . . . Parts Melted 3 | . 3 . . Heat Transferred 1604 | . 1382 222 . Parts Sabotaged . | . . . . Parts Stolen . | . . . . Parts Stripped . | . . . . Power Chain Reactions 2 | . 2 . . Alert | -11 -10 -10 -10 ------- Run | Yrd Mat Min Exi Peak Influence 225 | . 225 69 . Initial . | . . . . Average 31 | . 48 15 . Maximum Alert Level 1 | . 1 . . Low Security (%) 97 | 100 94 100 . Level 1 2 | . 5 . . Level 2 . | . . . . Level 3 . | . . . . Level 4 . | . . . . Level 5 . | . . . . High Security . | . . . . Max Security . | . . . . Squads Dispatched . | . . . . Investigation . | . . . . Extermination . | . . . . Reinforcement . | . . . . Assault . | . . . . Garrison . | . . . . Intercept . | . . . . Searches Triggered . | . . . . Construction Impeded . | . . . . Haulers Reinforced . | . . . . Active Scanning Responses . | . . . . Cargo Convoy Interrupts . | . . . . Stealth | -11 -10 -10 -10 --------- Run | Yrd Mat Min Exi Distress Signals . | . . . . Communications Jammed . | . . . . Distress Signals . | . . . . Times Spotted 22 | . 10 3 9 Peak Tracking Total 13 | . 3 2 13 Tactical Retreats 1 | . . 1 . Traps | -11 -10 -10 -10 ------- Run | Yrd Mat Min Exi Traps Triggered 6 | . 6 . . Indirectly . | . . . . Trap Hack Attempts . | . . . . Triggered . | . . . . Disarmed . | . . . . Reprogrammed . | . . . . Reused . | . . . . Traps Extracted . | . . . . Installed . | . . . . Triggered . | . . . . Machines | -11 -10 -10 -10 ---------- Run | Yrd Mat Min Exi Machines Disabled 3 | . 1 . 2 Max in Single Turn 1 | . 1 . 1 Machines Repaired . | . . . . Machines Dismantled . | . . . . Machines Sabotaged . | . . . . Overloaded Fab Kills . | . . . . Hacking | -11 -10 -10 -10 --------- Run | Yrd Mat Min Exi Machines Accessed 14 | . 10 . 4 Terminals 8 | . 8 . . Fabricators . | . . . . Repair Stations 1 | . 1 . . Recycling Units 1 | . 1 . . Scanalyzers . | . . . . Garrison Access . | . . . . Total Hacks 72 | . 33 . 39 Successful 68 | . 29 . 39 Failed 4 | . 4 . . Catastrophic 1 | . 1 . . Database Lockouts . | . . . . Manual 2 | . . . 2 Terminals 30 | . 30 . . Fabricators . | . . . . Repair Stations 2 | . 2 . . Recycling Units 1 | . 1 . . Scanalyzers . | . . . . Garrison Access . | . . . . Terminal Hacks 65 | . 26 . 39 Record 43 | . 5 . 38 Robot Analysis 2 | . 2 . . Prototype ID Bank 2 | . 2 . . Branch Access Points 1 | . 1 . . Machine Index 1 | . 1 . . Repair Station Index 1 | . 1 . . Recycling Unit Index 1 | . 1 . . Alert Level 1 | . 1 . . Locate Traps 4 | . 4 . . Surveillance Status 1 | . 1 . . Patrol Status 1 | . 1 . . Transport Status 2 | . 2 . . Hauler Manifests 2 | . 2 . . Registered Components 1 | . 1 . . Registered Prototypes 1 | . 1 . . Derelict Proto ID Bank 1 | . . . 1 Fabricator Hacks . | . . . . Repair Station Hacks 2 | . 2 . . Scan Component 1 | . 1 . . Repair 1 | . 1 . . Recycling Unit Hacks 1 | . 1 . . Report Inventory 1 | . 1 . . Scanalyzer . | . . . . Garrison Access Hacks . | . . . . Unauthorized Hacks . | . . . . Terminals . | . . . . Fabricators . | . . . . Repair Stations . | . . . . Recycling Units . | . . . . Scanalyzers . | . . . . Garrison Access . | . . . . Data Cores Recovered . | . . . . Used . | . . . . Hacking Detections 4 | . 4 . . Full Trace Events . | . . . . Feedback Events . | . . . . Feedback Blocked . | . . . . Robot Schematics Acquired . | . . . . Robots Built . | . . . . Authchips . | . . . . Time . | . . . . Total Robot Build Rating . | . . . . Part Schematics Acquired . | . . . . Parts Built . | . . . . Authchips . | . . . . Time . | . . . . Total Part Build Rating . | . . . . Parts Repaired 1 | . 1 . . Time 32 | . 32 . . Parts Recycled . | . . . . Recycled Matter . | . . . . Retrieved Matter . | . . . . Retrieved Components . | . . . . Parts Scanalyzed . | . . . . Part Schematics Acquired . | . . . . Parts Damaged . | . . . . Bothacking | -11 -10 -10 -10 ------------ Run | Yrd Mat Min Exi Used RIF Installer . | . . . . Robots Hacked . | . . . . Non-combat . | . . . . Combat . | . . . . Robot Hacks Applied . | . . . . Relay Couplers Released . | . . . . Fabnet Peak Effective % . | . . . . Robots Rewired . | . . . . Allies Hacked . | . . . . Hacks Repelled . | . . . . Allies | -11 -10 -10 -10 -------- Run | Yrd Mat Min Exi Total Allies 1 | . . 1 . Largest Group 1 | . . 1 1 Highest-Rated Group 31 | . . 31 31 Highest-Rated Ally 31 | . . 31 31 Total Orders . | . . . . Ally Attacks . | . . . . Total Damage . | . . . . Kills . | . . . . Allies Corrupted . | . . . . Allies Melted . | . . . . Intel | -11 -10 -10 -10 ------- Run | Yrd Mat Min Exi Robot Analysis Total 2 | . 2 . . Derelict Logs Recovered 1 | . . 1 . Drone Launches . | . . . . Drone Recoveries . | . . . . Exploration | -11 -10 -10 -10 ------------- Run | Yrd Mat Min Exi Turns Passed 3147 | 95 1242 1123 687 Spaces Moved 1691 | 55 630 656 350 Core 11 | 7 . . 4 Treads 1680 | 48 630 656 346 Legs . | . . . . Wheels . | . . . . Hover . | . . . . Flight . | . . . . Fastest Speed 50 | 50 160 160 50 Average Speed 166 | 146 160 160 192 Slowest Speed 240 | 160 160 160 240 Overloaded Moves . | . . . . Propulsion Burnouts . | . . . . Robots Hopped . | . . . . Cave-ins Triggered . | . . . . Exploration Rate (%) 66 | 5 97 99 64 Regions Visited 3 Branch Regions 2 Pre-discovered Areas 2 | . . 1 1 Known Exits Taken 3 | 1 1 1 . Unknown Exits Taken . | . . . . Scrap Searched 2 | . . 2 . Spaces Dug 4 | . . 4 . Terrain Destroyed 12 | . 4 4 4 Melee . | . . . . Projectile 4 | . . 4 . AOE 8 | . 4 . 4 Terrain Rammed . | . . . . Walls Destroyed . | . . . . Machines Disabled . | . . . . Actions | -11 -10 -10 -10 --------- Run | Yrd Mat Min Exi Total 1904 | 70 770 703 361 Wait 75 | 1 54 20 . Move 1688 | 54 629 655 350 Hop . | . . . . Pick Up 22 | 8 10 3 1 Fast Attach 1 | . 1 . . Attach 10 | 7 2 . 1 Detach 1 | . . . 1 Swap 25 | . 14 7 4 Drop 12 | . 8 3 1 Fire 69 | . 52 14 3 Melee . | . . . . Ram . | . . . . Kick . | . . . . Crush 1 | . . 1 . Escape Stasis . | . . . . Rewire . | . . . . Trap . | . . . . Miscellaneous . | . . . . Route ------- -11/Scrapyard -10/Materials (discovered 4 exits: *Mat x3 / *Min) -10/Mines (discovered 3 exits: *Mat x2 / *Exi) -10/Exiles (discovered 1 exit: *Min) History --------- Turn | Location | Event 16 | -11/Scrapyard | Identified exit to Materials 16 | -11/Scrapyard | Discovered exit to Materials (range 15) 96 | -11/Scrapyard | Entered Materials 96 | -10/Materials | Evolved 1 slot: Utility x1 255 | -10/Materials | Identified exit to Mines 255 | -10/Materials | Discovered exit to Mines (range 14) 316 | -10/Materials | Build established: Hacker-Mutant 439 | -10/Materials | Identified exit to Materials 439 | -10/Materials | Discovered exit to Materials (range 4) 541 | -10/Materials | Repaired Particle Gun 857 | -10/Materials | Discovered exit to Materials (range 15) 1033 | -10/Materials | Discovered exit to Materials (range 16) 1338 | -10/Materials | Entered Mines 1397 | -10/Mines | Received a Rocket Launcher from a helpful Derelict 1404 | -10/Mines | Discovered exit to Materials (range 7) 1456 | -10/Mines | Assembled infested the area 1660 | -10/Mines | Joined a pair of Derelicts in attacking an 0b10 outpost 1702 | -10/Mines | Identified exit to Exiles 1702 | -10/Mines | Discovered exit to Exiles (range 5) 2192 | -10/Mines | Learned location of Zion (-7) 2263 | -10/Mines | Discovered exit to Materials (range 7) 2269 | -10/Mines | Received a Mining Laser from a helpful Derelict 2322 | -10/Mines | A weapon hastily lodged in a ceiling crevice suddenly fell to the ground 2461 | -10/Mines | Entered Exiles 2461 | -10/Exiles | Accompanied by 1 ally 2485 | -10/Exiles | Identified exit to Mines 2485 | -10/Exiles | Discovered exit to Mines (range 14) 2535 | -10/Exiles | Met 8R-AWN 2557 | -10/Exiles | Met EX-HEX 2615 | -10/Exiles | Met EX-BIN 2668 | -10/Exiles | Aligned with FarCom system 2669 | -10/Exiles | Given EX-Vault access code 2741 | -10/Exiles | Opened EX-Vault 2776 | -10/Exiles | Found AWS/Autocannon 2849 | -10/Exiles | Warned to stay clear of 0b10 Research branches 2928 | -10/Exiles | Met EX-DEC 3106 | -10/Exiles | Attacked by the Exiles 3135 | -10/Exiles | Core integrity fell below 50% 3143 | -10/Exiles | Core integrity fell below 20% 3148 | -10/Exiles | Destroyed by DAS Turret with DAS Cannon Last Messages --------------- IN-Q5I(z) destroyed. Machine disabled. Lgt. Nuclear Core destroyed. Lgt. Armor Plating destroyed. Lgt. Treads destroyed. Slug Cannon destroyed. Sensor Array destroyed. Acquired 5 matter. as-69982 destroyed. as-20700 destroyed. Machine disabled. as-16484 destroyed. Destroyed Asb. Hover Unit. as-36987 destroyed. as-81347 destroyed. as-89684 destroyed. Rocket Launcher destroyed. Lgt. Treads destroyed. Particle Gun destroyed. Acquired 1 matter. Map ----- +----------------------------------------------------+ | ??????????## | | ???????????##" | | ????????????#""" """""" | | ???????????##" ######""" | | ???????????#"" ""##????#####""" | | ??????????##""" """##?????????##""" | | ??????????#""" ""##?#?????????#"""" | | ??????????#""" "##???????????#"" | | ??????????#"" #####??####"""" | | ??????????#""" # ####""" | | ??????????#"" """" | | ??????????##"" | | ???????????#"""" %% | | ???????????## * % | | ???????????##" = % "" | | ????????????#"""" /""## ##""" " " " | | ????????????#"" ""#### #?####""" "" | | ????????????#" ##??# #????###"""" | | ????????????#""" "#??## ####???##### | | ????????????## ""##??#! "!#??????#? | | ?????????????#"" """##???#" !#???????? | | ?????????????##""" % ##????#" "#???????? | | ??????????????##"""" ##?????#!!""!"#???????? | | ???????????????### % #??????########???????? | | ?????????????????##### ##??#??????????????????? | | ?????????????????????## @#??????????#???????????? | | ??????????????????????# #??????????????????????? | | ??????????????????????#% #??????????????????????? | | ??????????????????????# c #??????????????????????? | | ??????????????????????# #?????????#????????????? | | ??????????????????????# #??????????????????????? | | ??????????????????????# #??????????????????????? | | ??????????????????????# #??????????????????????? | | ??????????????????????# #????#?????????????????? | | ??????????????????????# ????#??????????????????? | | ??????????????????#???# ???????????????????????? | | ??????????????????????"c ???????????????????????? | | ?????????????????????? ???????????????????????? | | ?????????????????????? ???????????????????????? | | ?????????????????????? ???????????????????????? | | ??????????????????????? ???????????????????????? | | ?????????????????????????????????????????????????? | | ?????????????????????????????????????????????????? | | ?????????????????????????????????????????????????? | | ?????????????????????????????????????????????????? | | ?????????????????????????????????????????????????? | | ?????????????????????????????????????????????????? | | ?????????????????????????????????????????????????? | | ?????????????????????????????????????????????????? | | ?????????????????????????????????????????????????? | +----------------------------------------------------+ Best States ------------- Heat Dissipation 25 Energy Generation 14 Energy Capacity 160 Matter Stores 300 Matter Capacity 300 Sight Range 16 Robot Scan Range 14 Terrain Scan Range 16 Terrain Scan Density 10 Armor Coverage 150 Resistance: KI 35 Resistance: TH 35 Resistance: EX 35 Resistance: EM 35 Resistance: I 35 Resistance: S 35 Resistance: P 35 Propulsion Shielding 33 Evasion (%) 40 Targeting Accuracy 5 Recoil Reduction 2 Offensive Hacking 20 Item Schematics ----------------- None Robot Schematics ------------------ None Fabricated ------------ Nothing Alien Tech Used ----------------- None Achievements -------------- None Challenges ------------ None Game ------ Seed VampiricSeismicDrivehammer Manual? 0 Play Time 00:56:03 Cumulative 14.3 hours Start 2025.03.29 @ 17:31:10 End 2025.03.29 @ 18:35:08 Sessions 1 Manual Loads 0 Difficulty Explorer Special Mode None Game No. 4 Rogue 0 Adventurer 0 Explorer 4 Win Type - Total 0 Types 0/0/0/0/0/0/0/0/0 Lore% 9 Gallery% 19 Achievement% 21 Wizard Run 0 Options --------- Layout 1 ASCII 0 Keyboard 0 Movement Mouse Keybinds 0 Fullscreen 2 Font 24/Smallcaps Map View 50x35 Zoom Use 0% Tactical HUD 0 Map Filters NONE Filters NONE Steam 1 RUN: 5e04b7ae-57ee-468a-947e-dc1b73f734e5